[Event "Galician-chT Honour Playoff 2022"]
[Site "Vilagarcia"]
[Date "2022.04.23"]
[Round "1"]
[White "Sousa, Andre Ventura"]
[Black "Reinaldo Castineira, Roi"]
[Result "1/2-1/2"]
[ECO "C02"]
[WhiteElo "2429"]
[BlackElo "2495"]
[Annotator "TA"]
[PlyCount "131"]
[EventDate "2022.04.23"]
[EventType "team-tourn"]
[EventCountry "ESP"]
[SourceTitle "playchess.com"]
[Source "ChessBase"]
[SourceQuality "1"]
[TimeControl "5400+30"]

{[%evp 11,131,0,11,0,-7,-40,10,-61,-57,-51,-12,-32,-24,-23,-16,-33,-31,-35,-23,-64,-47,-64,-63,-126,-143,-125,-143,-150,-123,-138,-112,-120,-120,-116,-112,-110,-108,-116,-110,-105,464,476,406,9,10,10,10,10,10,10,9,0,0,0,22,0,0,0,0,0,61,61,114,106,141,149,135,0,0,0,24,29,206,206,206,206,206,206,1570,206,206,199,199,199,199,199,508,406,500,177,539,24,24,24,24,24,24,24,24,24,31,31,31,17,17,17,24,24,24,0,24,24,24,25,25,25,25,25,25,-8,-8,-8]} 1. e4 {[%emt 0:00:03]} e6 {[%emt 0:00:58]} 2. d4 {[%emt 0:00:06]} d5 {[%emt 0:00:32]} 3. e5 {[%emt 0:00:05]} c5 {[%emt 0:00:14]} 4. c3 {[%emt 0:00:04]} Nc6 {[%emt 0:01:09]} 5. Nf3 {[%emt 0:00:04]} Bd7 {[%emt 0:01:54]} 6. Bd3 {[%emt 0:00:12]} Rc8 {[%emt 0:02:25]} 7. O-O {[%emt 0:00:47] C02: French: Advance Variation.} cxd4 {[%emt 0:00:41]} 8. Re1 {[%emt 0:00:21]} Nge7 {[%emt 0:06:19] [#]} (8... Qb6 $15) 9. Bg5 $146 {[%emt 0:07:24]} (9. Nxd4 $11 Nxd4 10. cxd4) ({Predecessor:} 9. h4 h6 10. a3 dxc3 11. Nxc3 a6 12. Be3 Na5 13. Qe2 Nc4 14. Bc1 b5 15. a4 {1-0 (72) Hector,J (2532)-Brynell,S (2461) Vaxjo 2008}) 9... Qb6 $15 {[%emt 0:06:08]} 10. Na3 {[%emt 0:08:57]} Nf5 {[%emt 0:23:39]} (10... Qxb2 $2 11. Nb5 Ng6 12. Re2 dxc3 13. Rxb2 cxb2 14. Rb1 $18) 11. Nc2 {[%emt 0:22:35]} h6 {[%emt 0:05:45]} (11... Qxb2 12. Bxf5 exf5 13. Nfxd4 $14) 12. Bd2 {[%emt 0:03:13]} dxc3 {[%emt 0:02:15]} (12... Qxb2 13. Bxf5 dxc3 14. Bc1 $14) 13. bxc3 {[%emt 0:00:05]} Bc5 {[%emt 0:01:45]} 14. Rb1 {[%emt 0:00:47]} Qc7 {[%emt 0:00:10]} (14... Bxf2+ $2 15. Kf1 Qc5 16. Re2 $18 (16. Rb5 Qxb5 17. Bxb5 Bxe1 $16)) 15. h4 {[%emt 0:17:30]} O-O {[%emt 0:04:02]} 16. h5 {[%emt 0:03:41]} Nfe7 {[%emt 0:13:15]} 17. Ne3 {[%emt 0:11:07]} ({White should try} 17. Ncd4 $15) 17... Nxe5 $17 {[%emt 0:06:49]} 18. Nxe5 {[%emt 0:00:21]} Qxe5 {[%emt 0:00:05]} 19. Ng4 {[%emt 0:05:39]} Qc7 {[%emt 0:04:38] Strongly threatening ...Bd6.} 20. Nxh6+ {[%emt 0:02:42]} gxh6 {[%emt 0:01:18]} 21. Qg4+ {[%emt 0:00:33]} Kh8 {[%emt 0:00:23]} (21... Ng6 $2 22. hxg6 f6 23. Bxh6 $18) 22. Bxh6 {[%emt 0:01:20][%csl Gh6][%cal Rg4g7]} Rg8 {[%emt 0:00:39] Prevents Qg7+.} 23. Qh4 {[%emt 0:00:07]} Qg3 $1 {[%emt 0:06:21][%csl Gg8][%cal Rg3g2]} 24. Qf6+ {[%emt 0:00:04] [#]} Rg7 $1 {[%emt 0:00:02][%csl Gg7][%cal Rg3g2]} 25. Bg6 {[%emt 0:05:33][%csl Gh6][%cal Rf6g7] [#]} ({Reject} 25. Bxg7+ Qxg7 26. Qxg7+ Kxg7 27. Rxb7 Bc6 $19) 25... Nf5 {[%emt 0:02:52][%mdl 8192]} (25... Qxf2+ $1 $17 {and life is bright.} 26. Qxf2 Bxf2+ 27. Kxf2 fxg6 28. Bxg7+ Kxg7 29. Rxb7 Rd8 30. hxg6 a5) 26. Bxg7+ $18 {[%emt 0:00:16]} Nxg7 {[%emt 0:00:02] [#]} 27. Bxf7 $2 {[%emt 0:03:58] Really sharp!} ({Only move:} 27. Rxb7 $1 $18 Bxf2+ (27... fxg6 28. Rxd7) 28. Qxf2 Qxf2+ 29. Kxf2 fxg6 30. Rxd7) 27... Qxf2+ $1 $11 {[%emt 0:00:34]} 28. Qxf2 {[%emt 0:00:03]} Bxf2+ {[%emt 0:00:02]} 29. Kxf2 {[%emt 0:00:07]} Rf8 {[%emt 0:00:03] [#]} 30. Rxb7 $1 {[%emt 0:02:25]} Rxf7+ {[%emt 0:00:04]} 31. Ke3 {[%emt 0:03:14]} Nf5+ {[%emt 0:00:16]} 32. Kd2 {[%emt 0:00:37]} Ng3 {[%emt 0:01:16]} 33. Kc1 {[%emt 0:00:35][%mdl 1024] White has compensation.} Kg7 {[%emt 0:00:53]} 34. Rxa7 {[%emt 0:00:21]} Nxh5 {[%emt 0:00:39]} 35. a4 {[%emt 0:00:34]} Nf4 {[%emt 0:00:08]} (35... Nf6 $11) 36. Kd2 $1 $14 {[%emt 0:00:26] Rf1 is the strong threat.} Nh5 {[%emt 0:03:10] [#]} (36... e5 $14) 37. a5 $1 $16 {[%emt 0:00:10]} Ng3 {[%emt 0:00:23]} 38. a6 {[%emt 0:01:04]} Ne4+ {[%emt 0:00:04]} 39. Rxe4 {[%emt 0:00:52]} dxe4 {[%emt 0:00:15][%mdl 4096] Endgame KRB-KR} 40. Rc7 {[%emt 0:00:06] Inhibits Bc6.} e3+ {[%emt 0:04:07]} 41. Kxe3 {[%emt 0:00:31] Hoping for a7.} Bb5 $2 {[%emt 0:00:22]} (41... Kf6 $1 $11 {and Black is okay.}) 42. a7 $18 {[%emt 0:00:23]} (42. Rxf7+ Kxf7 43. a7 Bc6 $19) 42... Rxc7 {[%emt 0:00:22]} 43. a8=Q {[%emt 0:00:05]} Rxc3+ {[%emt 0:00:24] KQ-KRB} 44. Kf4 {[%emt 0:00:35] And now Qb7+ would win.} Rd3 $2 {[%emt 0:02:35]} (44... Rc7 45. Qa1+ Kg8) 45. Qa1+ $2 {[%emt 0:01:20]} (45. Qe4 Kf7 46. Qh7+ Kf6 47. Qh4+ Kg6 48. Qg5+ Kf7 49. Qxb5) 45... Kf7 {[%emt 0:00:24]} 46. Qa7+ {[%emt 0:00:43]} Rd7 {[%emt 0:00:32]} 47. Qb6 {[%emt 0:00:47]} Rd5 {[%emt 0:00:15]} 48. g4 {[%emt 0:00:05] Prevents Rf5+.} Be2 $2 {[%emt 0:02:12]} (48... Be8 49. g5 Rf5+ 50. Kg4 Kg7 51. Qxe6 Bg6 52. Qe7+ Rf7 53. Qe5+ Kg8) 49. Qc7+ {[%emt 0:00:33]} Kf6 {[%emt 0:00:32]} 50. g5+ $2 {[%emt 0:00:54]} (50. Qh7 {[%cal Og4g5] White wants to mate with g5+!} e5+ 51. Kg3) 50... Kg6 {[%emt 0:00:02]} 51. Qe7 {[%emt 0:00:44]} (51. Qb8 $18 {Threatening mate with Qg8+.} Kh7 52. Qb1+ Rf5+ 53. Kg3 (53. Ke3 Bh5 $14)) 51... Rf5+ $11 {[%emt 0:00:16]} 52. Ke3 {[%emt 0:00:16]} Bc4 {[%emt 0:00:36]} 53. Qe8+ {[%emt 0:00:10]} Kxg5 {[%emt 0:01:17]} 54. Qg8+ {[%emt 0:00:08]} Kf6 {[%emt 0:00:16]} 55. Qf8+ {[%emt 0:00:10]} Ke5 {[%emt 0:00:28]} 56. Qh8+ {[%emt 0:00:52]} Kd6 $1 {[%emt 0:00:18]} 57. Qd4+ {[%emt 0:00:28]} Bd5 {[%emt 0:00:05]} 58. Qb6+ {[%emt 0:00:09]} Bc6 {[%emt 0:00:25]} 59. Qd8+ {[%emt 0:00:20]} Bd7 {[%emt 0:00:22]} 60. Qb6+ {[%emt 0:00:31]} Ke7 {[%emt 0:00:32]} 61. Qb4+ {[%emt 0:00:07]} Kf7 {[%emt 0:00:11]} 62. Qb7 {[%emt 0:00:07]} Re5+ {[%emt 0:00:29]} 63. Kf4 {[%emt 0:00:13]} Rd5 {[%emt 0:00:07]} 64. Ke4 {[%emt 0:00:19]} Kf6 {[%emt 0:00:30]} 65. Qxd5 {[%emt 0:00:11]} exd5+ {[%emt 0:00:05]} 66. Kxd5 {White really could win this.  Weighted Error Value: White=0.50/Black=0.33} 1/2-1/2

[Event "Galician-chT Honour Playoff 2022"]
[Site "Vilagarcia"]
[Date "2022.04.23"]
[Round "1"]
[White "Gomez Dieguez, David"]
[Black "Abal Cores, Lucas"]
[Result "1-0"]
[ECO "B88"]
[WhiteElo "2310"]
[BlackElo "2309"]
[Annotator "TA"]
[PlyCount "75"]
[EventDate "2022.04.23"]
[EventType "team-tourn"]
[EventCountry "ESP"]
[SourceTitle "playchess.com"]
[Source "ChessBase"]
[SourceQuality "1"]
[TimeControl "5400+30"]

{[%evp 14,75,0,-14,0,-23,54,42,66,37,102,81,89,72,103,103,153,149,277,167,396,393,387,395,382,207,139,136,438,139,145,85,93,93,102,95,77,28,25,6,8,25,64,839,29977,29978,29984,29980,29980,1766,1766,0,29980,29981,29987,29988,29988,29989,29989,29990,29996,29997,29997,29998]} 1. e4 {[%emt 0:00:07]} c5 {[%emt 0:00:19]} 2. Nc3 {[%emt 0:00:05]} Nc6 {[%emt 0:00:30]} 3. Nge2 {[%emt 0:00:06]} d6 {[%emt 0:01:01]} 4. d4 {[%emt 0:00:05]} cxd4 {[%emt 0:00:15]} 5. Nxd4 {[%emt 0:00:04]} Nf6 {[%emt 0:00:31]} 6. Bc4 {[%emt 0:03:14]} e6 {[%emt 0:04:16]} 7. Bg5 {[%emt 0:03:08]} Be7 {[%emt 0:07:07]} 8. Qd2 {[%emt 0:08:36]} a6 {[%emt 0:05:36] B63: Sicilian: Richter-Rauzer: 7...Be7 and unusual Black 7th moves.} 9. O-O-O {[%emt 0:21:40]} Qa5 {[%emt 0:10:24]} (9... Bd7 $11) 10. Nxc6 {[%emt 0:08:09]} bxc6 {[%emt 0:00:12] White is slightly better.} 11. Kb1 {[%emt 0:00:14] [#]} Qc7 $146 {[%emt 0:05:40]} (11... Bb7 $14) ({Predecessor:} 11... h6 12. Bxf6 gxf6 13. Rhe1 Rb8 14. Bb3 h5 15. f4 Rg8 16. f5 Qe5 17. g3 h4 18. gxh4 {1-0 (65) Zarubitski,V (2435)-Pour Agha Bala,A (2420) Aktobe 2019}) 12. Bxf6 {[%emt 0:03:19]} gxf6 {[%emt 0:00:23]} 13. Qh6 {[%emt 0:00:14]} Rb8 {[%emt 0:04:25]} 14. f4 {[%emt 0:07:11][%cal Of4f5] White is much more active.} (14. Qg7 Rf8 $14) 14... Bd7 {[%emt 0:06:22]} (14... Qb7 $142 15. Bb3 c5) 15. f5 $16 {[%emt 0:06:31]} (15. Qg7 $6 Rf8 $16) 15... e5 {[%emt 0:11:49]} (15... Rf8 $16 16. fxe6 (16. Qxh7 exf5 17. Rhe1 Qa5 $16) 16... fxe6) 16. g4 {[%emt 0:08:13] Strongly threatening Bb3.} (16. Qg7 $6 Rf8 $16) 16... Qb7 $2 {[%emt 0:09:59]} (16... d5) 17. Bb3 $1 $18 {[%emt 0:00:12]} c5 {[%emt 0:07:55][%cal Oc5c4]} 18. Qg7 {[%emt 0:08:14]} Rf8 {[%emt 0:00:09][%cal Oc5c4]} 19. Nd5 {[%emt 0:00:04]} (19. g5 $142 c4 20. gxf6 $1 cxb3 21. axb3) 19... c4 {[%emt 0:02:39] aiming for ...Bc6.} 20. Nxf6+ {[%emt 0:00:08]} (20. Nxe7 $6 cxb3 21. axb3 Kxe7 $11) 20... Kd8 $2 {[%emt 0:00:40][%mdl 8192] [#]} (20... Bxf6 $16 {is tougher.} 21. Qxf6 cxb3 22. axb3 Bc8) 21. Nxd7 $2 {[%emt 0:00:38]} (21. Nxh7 $1 $18 cxb3 22. axb3) 21... Kxd7 $16 {[%emt 0:00:54] [#]} 22. Ba4+ {[%emt 0:03:35]} (22. f6 $142 $1 cxb3 23. axb3 Qxe4 24. fxe7) 22... Kc7 {[%emt 0:00:46][%csl Gb8][%cal Rb7b2]} 23. b3 $36 {[%emt 0:01:21][%mdl 2048] Black must now prevent f6. White has strong initiative.} Qb4 {[%emt 0:01:03] [#] And now ...Qxa4 would win.} 24. f6 $1 {[%emt 0:01:26]} Qxa4 {[%emt 0:02:05]} 25. fxe7 {[%emt 0:01:44]} (25. Kb2 $1 $16) 25... cxb3 $11 {[%emt 0:00:08]} 26. cxb3 {[%emt 0:00:05]} (26. axb3 Rxb3+ $1 {[%mdl 512]} 27. Kc1 Qa3+ 28. Kd2 Qb4+ 29. c3 Qxc3+ 30. Ke2 Rb2+ 31. Kf1 Qf3+ 32. Kg1 Qxd1#) 26... Rxb3+ {[%emt 0:07:01]} 27. Ka1 {[%emt 0:00:01] Dancing on a razor blade.} (27. axb3 Qxb3+ 28. Ka1 Qa3+ 29. Kb1 Rb8+ 30. Kc2 Rb2+ 31. Kc1 Qc3#) 27... Rfb8 {[%emt 0:00:22][%cal Ob3b1] ( -> ...Rb1+!)} 28. e8=N+ $2 {[%emt 0:04:59][%mdl 8192]} (28. Qxh7 $2 Rb1+ $3 {[%mdl 512]} 29. Rxb1 Qd4+) (28. Rd2 $14 Rf3 29. Rc1+ (29. Qxh7 {leads to mate.} Qc4 30. e8=N+ Kd7 31. Rxd6+ Kc8) 29... Kd7 30. Qxe5 (30. Qxh7 $2 Qb4 $19)) 28... Kd8 {[%emt 0:01:32]} 29. Rxd6+ {[%emt 0:02:03]} (29. Nxd6 $2 Rb1+ $3 {[%mdl 512]} 30. Rxb1 Qd4+) 29... Ke7 {[%emt 0:00:33]} 30. Qxe5+ {[%emt 0:00:21]} Kf8 {[%emt 0:00:00]} 31. Qh8+ {[%emt 0:05:08]} (31. Nf6 $142 Qb5 32. Nxh7+ Kg8 33. Nf6+ Kf8 34. Nd7+ Kg8 35. axb3 Qxe5+ 36. Nxe5) 31... Ke7 $18 {[%emt 0:00:02]} 32. Qe5+ {[%emt 0:00:06]} Kf8 {[%emt 0:00:03]} 33. Nf6 {[%emt 0:00:44] White mates.} R3b5 {[%emt 0:02:17]} 34. Nxh7+ {[%emt 0:00:06]} (34. Nd5 $2 {is a self mate.} Qxa2+ $3 {[%mdl 512]} 35. Kxa2 Ra5#) 34... Kg8 {[%emt 0:00:05]} 35. Nf6+ {[%emt 0:00:05]} Kf8 {[%emt 0:00:01]} 36. Rd5 {[%emt 0:00:18]} (36. Nd5 $2 {[#] gets mated.} Qxa2+ $3 {[%mdl 512]} 37. Kxa2 Ra5#) 36... Qc2 {[%emt 0:01:41]} 37. Nd7+ {[%emt 0:00:27]} Kg8 {[%emt 0:00:06]} 38. Qg5+ {[%emt 0:00:06] Weighted Error Value: White=0.47/Black=0.76} 1-0

[Event "Galician-chT Honour Playoff 2022"]
[Site "Vilagarcia"]
[Date "2022.04.23"]
[Round "1"]
[White "Torrado Quintela, Julio"]
[Black "Hernandez Estevez, Yudania"]
[Result "1-0"]
[ECO "B11"]
[WhiteElo "2140"]
[BlackElo "2189"]
[Annotator "TA"]
[PlyCount "57"]
[EventDate "2022.04.23"]
[EventType "team-tourn"]
[EventCountry "ESP"]
[SourceTitle "playchess.com"]
[Source "ChessBase"]
[SourceQuality "1"]
[TimeControl "5400+30"]

{[%evp 12,57,16,0,45,23,45,20,35,35,103,66,127,103,248,249,354,237,284,245,515,495,522,513,561,558,575,566,528,275,418,423,445,268,485,341,833,818,869,873,834,805,1143,1143,29980,29972,29991,29992]} 1. e4 {[%emt 0:00:12]} c6 {[%emt 0:00:13]} 2. Nc3 {[%emt 0:00:25]} d5 {[%emt 0:01:09]} 3. Nf3 {[%emt 0:00:06]} Bg4 {[%emt 0:00:06]} 4. h3 {[%emt 0:00:34]} Bxf3 {[%emt 0:00:06]} 5. Qxf3 {[%emt 0:00:05]} e6 {[%emt 0:00:05]} 6. d3 {[%emt 0:00:41]} Nd7 {[%emt 0:00:18]} 7. Bd2 {[%emt 0:02:39]} g6 {[%emt 0:08:41] now scores much better than the old 7...Ngf6. B11: Caro-Kann: Two Knights Variation.} 8. g4 {[%emt 0:01:05][%cal Bg2g4,Bg4f5,Bf5g6,Bg6h7][%mdl 32]} Bg7 {[%emt 0:01:16]} 9. Bg2 {[%emt 0:00:12]} (9. exd5 cxd5 10. Bg2 Ne7 $15) 9... Ne7 {[%emt 0:01:39] The position is equal.} 10. O-O-O {[%emt 0:04:03] [#]} (10. exd5 cxd5 11. O-O O-O $11) 10... O-O $146 {[%emt 0:07:21]} (10... h5 $14) ({Predecessor:} 10... a6 11. Qg3 b5 12. f4 b4 13. Ne2 Qb8 14. h4 a5 15. Kb1 a4 16. e5 c5 {½-½ (51) Kyc,J (2096)-Tomaszewski,K (2012) Szczyrk 2014}) 11. h4 {[%emt 0:04:07] White is more active.} f5 {[%emt 0:01:24]} (11... dxe4 $14 12. dxe4 Ne5) 12. gxf5 {[%emt 0:04:44]} Qb6 {[%emt 0:15:25] [#]} (12... gxf5 $16 13. Qg3 Kh8) 13. Qg3 $1 $18 {[%emt 0:10:45] aiming for Qd6.} (13. exd5 cxd5 14. h5 Rxf5 $11) 13... Nc5 {[%emt 0:17:14]} (13... dxe4 {is a better defense.} 14. dxe4 (14. Qd6 Nxf5 15. Qxd7 Rfe8 $16) 14... exf5) 14. d4 {[%emt 0:16:40]} Bxd4 {[%emt 0:08:04]} 15. fxg6 {[%emt 0:00:30]} dxe4 $2 {[%emt 0:03:54]} (15... Bg7 16. gxh7+ Kh8) 16. gxh7+ {[%emt 0:01:08]} Kh8 {[%emt 0:01:46]} 17. Be3 {[%emt 0:12:20]} Bxe3+ {[%emt 0:00:14]} 18. fxe3 {[%emt 0:00:13] [#] Strongly threatening Qe5+.} Nf5 {[%emt 0:07:48]} 19. Qe5+ {[%emt 0:00:14]} Ng7 {[%emt 0:04:56]} 20. Nxe4 {[%emt 0:13:25]} Rf5 {[%emt 0:03:49]} (20... Nxe4 {might work better.} 21. Qxe4 (21. Bxe4 Qxe3+ 22. Kb1 Rf5 $14) 21... Qa5) 21. Qc3 {[%emt 0:04:30]} Na4 {[%emt 0:03:11]} 22. Qb3 {[%emt 0:00:39]} Qa5 {[%emt 0:05:28]} (22... Qxb3 {was necessary.} 23. axb3 (23. cxb3 Nc5 $18) 23... Nc5 24. Nxc5 Rxc5) 23. Rhf1 {[%emt 0:06:54]} ({Not} 23. Qxb7 Raf8 24. Qe7 Re8 $18) 23... Raf8 {[%emt 0:04:03]} (23... Rxf1 24. Bxf1 Nc5 25. Nxc5 Qxc5 26. Qxb7 Rf8) 24. Rxf5 {[%emt 0:02:32]} Rxf5 {[%emt 0:01:11]} 25. Ng5 {[%emt 0:01:21]} Nc5 {[%emt 0:02:22]} 26. Qc4 {[%emt 0:01:18]} Qc7 {[%emt 0:00:49]} 27. Qd4 {[%emt 0:02:30] Qd8+ would kill now.} Rxg5 {[%emt 0:00:35]} 28. hxg5 {[%emt 0:00:16][%cal Bh4g5,Bg5g6][%mdl 32]} b6 {[%emt 0:00:27]} 29. g6 {[%emt 0:00:12] Black got outplayed after the opening.  Weighted Error Value: White=0.48/Black=0.93} 1-0

[Event "Galician-chT Honour Playoff 2022"]
[Site "Vilagarcia"]
[Date "2022.04.23"]
[Round "1"]
[White "Gomez Carreno, Martin"]
[Black "Segura Santos, Luis"]
[Result "0-1"]
[ECO "B23"]
[WhiteElo "2133"]
[BlackElo "2110"]
[Annotator "TA"]
[PlyCount "76"]
[EventDate "2022.04.23"]
[EventType "team-tourn"]
[EventCountry "ESP"]
[SourceTitle "playchess.com"]
[Source "ChessBase"]
[SourceQuality "1"]
[TimeControl "5400+30"]

{[%evp 9,76,0,12,0,0,0,0,0,0,0,0,0,22,26,10,-12,131,23,28,17,21,14,50,61,67,57,45,56,163,167,160,156,156,163,150,103,527,0,0,0,0,-8,-8,-8,-8,-11,-11,-14,-28,-118,-115,-122,-114,-91,-85,-187,-139,-12840,-12840,-12841,-12841,-12845,-12845,-12845,-12844,-12845,-12845,-12845,-12846]} 1. e4 {[%emt 0:00:04]} c5 {[%emt 0:00:14]} 2. Nc3 {[%emt 0:00:06]} a6 {[%emt 0:00:34]} 3. Nge2 {[%emt 0:00:26]} d6 {[%emt 0:00:18]} 4. d4 {[%emt 0:00:16]} cxd4 {[%emt 0:00:32]} 5. Qxd4 {[%emt 0:00:35]} Nc6 {[%emt 0:04:52]} 6. Qd2 {[%emt 0:00:06] B23: Closed Sicilian: Lines without g3.} Nf6 {[%emt 0:01:13]} 7. b3 {[%emt 0:00:21]} e6 {[%emt 0:02:29]} 8. Bb2 {[%emt 0:04:36] [#] The position is equal.} Be7 $146 {[%emt 0:01:29]} ({Predecessor:} 8... b5 9. O-O-O Qb6 10. f3 h5 11. Kb1 Bb7 12. Nf4 Be7 13. a4 b4 14. Nce2 Qc7 {1-0 (75) Tomczak,J (2625)-Saric,I (2650) Germany 2021}) 9. O-O-O {[%emt 0:02:27]} O-O {[%emt 0:02:35]} 10. Kb1 {[%emt 0:03:19]} Qa5 {[%emt 0:04:30]} 11. f3 {[%emt 0:02:46]} Rd8 {[%emt 0:19:34]} 12. Nd4 {[%emt 0:19:07]} d5 {[%emt 0:17:46]} (12... Qc7 $11) 13. exd5 {[%emt 0:06:41]} ({And not} 13. Nxd5 Qxd2 14. Nxe7+ Nxe7 $11) ({White should play} 13. Nxc6 $1 $16 bxc6 14. Nxd5 $1 Qxd2 15. Nxe7+ Kh8 16. Rxd2 Rxd2 17. Kc1) 13... exd5 $11 {[%emt 0:06:02]} 14. Na4 {[%emt 0:20:42] aiming for Nxc6.} Qc7 {[%emt 0:03:28]} 15. Bd3 {[%emt 0:06:10]} b5 {[%emt 0:02:45] ...Nxd4 is the strong threat.} 16. Nxc6 {[%emt 0:00:14]} Qxc6 {[%emt 0:00:08]} 17. Nc3 {[%emt 0:00:13]} Bb4 {[%emt 0:01:29] Strongly threatening ...d4.} 18. a3 {[%emt 0:00:16]} Ba5 {[%emt 0:01:07] [#]} (18... Bc5 $14) 19. Nxd5 $1 $18 {[%emt 0:01:57][%mdl 512]} Nxd5 {[%emt 0:07:40]} 20. Qxa5 {[%emt 0:00:08]} Be6 {[%emt 0:00:03]} 21. c4 {[%emt 0:15:46]} bxc4 {[%emt 0:00:44]} 22. bxc4 {[%emt 0:00:21]} (22. Bxc4 $142 Rd6 23. Rhe1) 22... Nb6 $2 {[%emt 0:09:07][%mdl 8192] [#]} (22... Qb6 $16 {is more resistant.} 23. Qxb6 Nxb6) 23. Qc3 $2 {[%emt 0:09:28]} (23. Qg5 $1 $18 {[%csl Gb2][%cal Rg5g7]} f6 24. Bxf6) 23... f6 $11 {[%emt 0:00:58] And now ...Na4 would win. Active counter play!} 24. Be4 {[%emt 0:00:13]} Qa4 {[%emt 0:00:13]} 25. Bc2 $132 {[%emt 0:01:56][%mdl 2048] White is not holding back. This bishop pair is nice.} Qxc4 {[%emt 0:01:14] White must now prevent ...Qa2+.} 26. Qxc4 {[%emt 0:01:06]} Nxc4 {[%emt 0:00:52]} 27. Rxd8+ {[%emt 0:01:56]} Rxd8 {[%emt 0:00:02]} 28. Re1 {[%emt 0:01:42]} Kf7 {[%emt 0:02:36] Hoping for ...Rb8.} 29. Ka1 {[%emt 0:00:41]} ({Don't blunder} 29. Bxh7 $2 Rb8 30. Re2 g6 $19) (29. Bc1 $11) 29... Nxb2 $17 {[%emt 0:01:39]} ({Reject} 29... Rd2 $6 30. Bb3 $15) 30. Kxb2 {[%emt 0:00:02][%mdl 4096] Endgame KRB-KRB} Rd2 {[%emt 0:00:14]} 31. Kc3 {[%emt 0:00:52][%csl LRd2,LRh7]} Rxg2 {[%emt 0:00:15]} 32. h4 {[%emt 0:01:02]} (32. Bxh7 $17 Rf2 33. Be4) 32... Rh2 {[%emt 0:03:35]} (32... Rf2 $19 33. Bd1 h5) 33. Re4 $2 {[%emt 0:00:26][%mdl 8192] [#]} (33. Bxh7 $17 Rh3 34. Bg8+ Kxg8 35. Rxe6) 33... Rxc2+ $1 $19 {[%emt 0:00:29][%mdl 512] Black is clearly winning.} 34. Kxc2 {[%emt 0:00:13]} Bf5 {[%emt 0:00:02]} 35. Kc3 {[%emt 0:00:12]} Bxe4 {[%emt 0:00:07]} 36. fxe4 {[%emt 0:00:04]} Ke6 {[%emt 0:00:30]} 37. Kd4 {[%emt 0:00:22]} h5 {[%emt 0:00:34]} 38. a4 {[%emt 0:00:28]} g5 {[%emt 0:00:13] What a bad dream for White.  Weighted Error Value: White=0.70/Black=0.40} 0-1